fUSD/lending_fUSD_20241019
["ID","MTS","AMOUNT","RATE_DAILY","PERIOD"]
[340504150,1729372240177,-8896.44,0.000109,2]
[340504151,1729372240186,-298.82553224,0.000109,2]
[340504152,1729372240195,-767.25526173,0.000109,2]
[340504153,1729372240204,-11148.21718896,0.000109,2]
[340504154,1729372240214,-250.0,0.00010901,2]
[340504155,1729372240223,-157.84,0.00010959,2]
[340504156,1729372240232,-849.44,0.00010959,2]
[340504157,1729372240241,-250.0,0.00010959,2]
[340504158,1729372240250,-4079.03,0.00010959,2]
[340504159,1729372240259,-500.0,0.00010973,2]
[340504160,1729372240268,-500.0,0.00010973,2]
[340504161,1729372240278,-196.88204439,0.0001099,2]
[340504162,1729372240287,-196.88204439,0.0001099,2]
[340504163,1729372240296,-196.88204439,0.0001099,2]
[340504164,1729372240304,-500.0,0.00010999,2]
[340504165,1729372240314,-325.40687212,0.00010999,2]
[340504166,1729372240323,-500.0,0.00010999,2]
[340504167,1729372240333,-447.98514013,0.00010999,2]
[340504168,1729372240343,-500.0,0.00010999,2]
[340504169,1729372240352,-500.0,0.00010999,2]
[340504170,1729372240361,-433.75500116,0.00010999,2]
[340504171,1729372240371,-500.0,0.00010999,2]
[340504172,1729372240380,-500.0,0.00010999,2]
[340504173,1729372240389,-488.61566162,0.00010999,2]
[340504174,1729372240398,-197.10043739,0.00011,2]
[340504175,1729372240408,-51971.75903743,0.00011,2]
[340504176,1729372240419,-2080.25724065,0.00011,2]
[340504177,1729372240430,-292.6,0.00011,2]
[340504178,1729372240441,-4246107.37418544,0.00011,2]
[340504179,1729372240452,-432.31164817,0.00011,2]
[340504180,1729372240463,-5307.9,0.00011,2]
[340504181,1729372240475,-711.24,0.00011,2]
[340504185,1729372243228,-166.66666668,0.000109,2]
[340504186,1729372243238,-12819.01486345,0.00011,2]
[340504255,1729372246122,-500.0,0.00011,2]
[340504261,1729372270867,306.52431117,0.00013799,120]
[340504262,1729372357503,250.0,0.0001,2]
[340504264,1729372659078,526.34,9.494e-05,2]
[340504265,1729372729377,-1791.18955719,0.000107,2]
[340504266,1729372729397,-150.0,0.0001079,2]
[340504267,1729372729418,-214.9304,0.000108,2]
[340504268,1729372729440,-442.0,0.0001089,2]
[340504269,1729372729461,-300.0,0.00010899,2]
[340504270,1729372729485,-150.0,0.00010899,2]
[340504271,1729372729507,-167.72852133,0.000109,2]
[340504272,1729372729528,-313.995068,0.000109,2]
[340504273,1729372729552,-1000.0,0.000109,2]
[340504274,1729372729582,-262.4105,0.000109,2]
[340504275,1729372729607,-771.74595348,0.000109,2]
[340504276,1729373228108,-150.0,0.0001063,2]
[340504277,1729373228130,-800.0,0.0001064,2]
[340504278,1729373228150,-1168.99340891,0.00010789,2]
[340504279,1729373248126,-858.24809465,0.000107,2]
[340504280,1729373313495,180.05,8.056e-05,2]
[340504282,1729373325576,570.43,8.219e-05,2]
[340504283,1729373357282,166.33,0.00010082,2]
[340504284,1729373375556,200.0,0.0001007,2]
[340504285,1729373381690,250.0,0.0001008,2]
[340504286,1729373412019,23900.0,0.00010056,2]
[340504298,1729373432139,-570.43,0.0001048,2]
[340504299,1729373432148,-93.24270921,0.00010693,2]
[340504309,1729373432200,-56.75729079,0.00010693,2]
[340504311,1729373432210,-300.0,0.00010788,2]
[340504312,1729373432219,-41.26017179,0.00010789,2]
[340504313,1729373432230,-9263.16355129,0.00010789,2]
[340504314,1729373432239,-1330.98439478,0.00010789,2]
[340504315,1729373432249,-1000.0,0.000108,2]
[340504316,1729373432258,-2500.0,0.000108,2]
[340504317,1729373432267,-214.9304,0.000108,2]
[340504318,1729373432275,-505.36067579,0.00010873,2]
[340504319,1729373432285,-150.0,0.00010898,2]
[340504320,1729373432294,-4416.94210436,0.00010899,2]
[340504321,1729373432305,-6751.95278822,0.00010899,2]
[340504322,1729373432315,-8172.20444652,0.000109,2]
[340504323,1729373432325,-620.039,0.000109,2]
[340504324,1729373432334,-309.10947332,0.000109,2]
[340504325,1729373432345,-741.7305414,0.000109,2]
[340504326,1729373432356,-1103.55713475,0.000109,2]
[340504327,1729373432367,-1362.38424677,0.000109,2]
[340504328,1729373432378,-1761.30930376,0.000109,2]
[340504329,1729373432387,-170.09528157,0.000109,2]
[340504330,1729373432396,-834.27326577,0.000109,2]
[340504331,1729373432414,-1303.27384699,0.000109,2]
[340504332,1729373432425,-1425.76150624,0.000109,2]
[340504333,1729373432436,-608.34396347,0.000109,2]
[340504334,1729373432446,-6236.81216735,0.000109,2]
[340504335,1729373432458,-3234.17575356,0.000109,2]
[340504336,1729373432468,-563.10986677,0.000109,2]
[340504337,1729373432479,-1682.31276623,0.000109,2]
[340504338,1729373432489,-2084.775,0.000109,2]
[340504339,1729373432501,-898.95103606,0.000109,2]
[340504342,1729373432522,-500.0,0.00010873,2]
[340504344,1729373432531,-349.36959246,0.000109,2]
[340504345,1729373432541,-485.0363,0.000109,2]
[340504349,1729373438352,-960.8149,0.000108,2]
[340504350,1729373438362,-7309.55074238,0.000109,2]
[340504351,1729373438694,-587.83016339,0.000109,2]
[340504357,1729373440169,-337.374,0.000109,2]
[340504358,1729373440231,-3991.49622933,0.000109,2]
[340504359,1729373440240,-513.3241,0.000109,2]
[340504360,1729373440250,-791.5347,0.000109,2]
[340504361,1729373440260,-500.0,0.000109,2]
[340504362,1729373440270,-7261.40508077,0.000109,2]
[340504363,1729373440388,-1171.9305732,0.000109,2]
[340504364,1729373440399,-4515.90098311,0.000109,2]
[340504365,1729373440410,-534.30484756,0.000109,2]
[340504366,1729373440421,-1510.21822307,0.000109,2]
[340504367,1729373440438,-270.525589,0.000109,2]
[340504380,1729373443288,-1116.0346,0.000108,2]
[340504381,1729373443300,-1737.97686556,0.000109,2]
[340504382,1729373443311,-520.26401847,0.000109,2]
[340504383,1729373443346,-1963.95623651,0.000109,2]
[340504384,1729373443358,-8742.00775548,0.000109,2]
[340504385,1729373443460,-4211.30740714,0.000109,2]
[340504386,1729373443520,-212560.20242013,0.000109,2]
[340504387,1729373443531,-1000.0,0.000109,2]
[340504388,1729373443540,-7500.0,0.000109,2]
[340504389,1729373443549,-169.56295467,0.000109,2]
[340504390,1729373443559,-162.14876673,0.000109,2]
[340504391,1729373443571,-3659.13891159,0.00010954,2]
[340504392,1729373443583,-199.2170215,0.00010954,2]
[340504393,1729373443592,-511.50350782,0.00010954,2]
[340504394,1729373443602,-500.0,0.00010958,2]
[340504395,1729373443611,-218.59067091,0.00010958,2]
[340504396,1729373443620,-499.99,0.00010958,2]
[340504397,1729373443629,-162.94,0.00010959,2]
[340504398,1729373443638,-250.0,0.00010959,2]
[340504399,1729373443650,-773.32,0.00010959,2]
[340504400,1729373443659,-500.0,0.00010973,2]
[340504401,1729373443668,-228.92553663,0.00010999,2]
[340504402,1729373443678,-151.20454897,0.00010999,2]
[340504403,1729373443686,-1137845.85924716,0.00011,2]
[340504404,1729373443698,-1058.88,0.00011,2]
[340504405,1729373443708,-796.068646,0.00011,2]
[340504406,1729373446230,-276.75,0.00011,2]
[340504407,1729373446241,-1041.85168291,0.00011,2]
[340504408,1729373446289,-1231.46458012,0.00011,2]
[340504409,1729373446404,-815.23600552,0.00011,2]
[340504410,1729373446462,-669.58337309,0.00011,2]
[340504411,1729373446522,-211153.90161543,0.00011,2]
[340504412,1729373446533,-606.37577,0.00011,2]
[340504413,1729373446583,-16330.8655342,0.00011,2]
[340504414,1729373604302,360.0,0.00010154,2]
[340504415,1729373785303,1958.28,0.00010114,2]
[340504416,1729373847621,177.47,0.00010117,2]
[340504417,1729373848196,1852.42,0.00010117,2]
[340504418,1729373898164,547.81,8.219e-05,2]
[340504419,1729373976103,23900.0,0.00010097,2]
[340504420,1729373983262,180.05,8.078e-05,2]
[340504421,1729373988696,250.0,0.00010097,2]
[340504422,1729374043250,151.06,0.0001018,2]
[340504423,1729374048615,159.66,0.00010101,2]
[340504424,1729374060212,250.0,0.00010101,2]
[340504425,1729374104060,200.0,9.95e-05,2]
[340504426,1729374178573,250.0,0.0001,2]
[340504427,1729374203515,712.0,0.00010017,2]
[340504428,1729374228918,200.0,9.967e-05,2]
[340504430,1729374345401,187.21,0.00010017,2]
[340504431,1729374364082,334.63638157,0.00010382,2]
[340504432,1729374388926,598.104945,0.00010358,2]
[340504433,1729374422319,553.12,8.219e-05,2]
[340504434,1729374424757,1723.38,0.00010014,2]
[340504435,1729374440183,-150.0,0.0001041,2]
[340504436,1729374440204,-184.53399876,0.00010477,2]
[340504437,1729374443091,-368.58600124,0.00010477,2]
[340504438,1729374443110,-52.89369592,0.000107,2]
[340504439,1729374452081,-179.96270408,0.000107,2]
[340504440,1729374452101,-83.61065917,0.00010767,2]
[340504442,1729374476238,23900.0,0.00010017,2]
[340504451,1729374632398,-150.0,0.00010763,2]
[340504452,1729374632408,-66.38934083,0.00010767,2]
[340504453,1729374632417,-150.0,0.00010799,2]
[340504454,1729374632426,-1000.0,0.000108,2]
[340504455,1729374632435,-500.0,0.000108,2]
[340504456,1729374632445,-1082.41331255,0.000108,2]
[340504457,1729374632456,-3753.76120749,0.000108,2]
[340504458,1729374632467,-10774.44975929,0.000108,2]
[340504459,1729374632478,-896.13144154,0.000108,2]
[340504460,1729374632490,-3094.63215291,0.000108,2]
[340504461,1729374632515,-1245.568807,0.000108,2]
[340504462,1729374632527,-2763.18092288,0.000108,2]
[340504463,1729374632628,-14203.32784558,0.000108,2]
[340504507,1729374638179,250.0,9.997e-05,2]
[340504512,1729374638762,-34167.69945076,0.000108,2]
[340504513,1729374638771,-214.9304,0.000108,2]
[340504514,1729374638781,-151.71,0.00010882,2]
[340504515,1729374638790,-1343.53,0.00010882,2]
[340504516,1729374638799,-151.71,0.00010889,2]
[340504517,1729374638808,-151.71,0.00010896,2]
[340504518,1729374638818,-10360.19132688,0.00010899,2]
[340504519,1729374638827,-7500.0,0.000109,2]
[340504520,1729374638836,-2500.0,0.000109,2]
[340504521,1729374638845,-166.10076131,0.000109,2]
[340504522,1729374638854,-499.99,0.000109,2]
[340504523,1729374638864,-553.89484876,0.000109,2]
[340504524,1729374638874,-151.71,0.00010902,2]
[340504525,1729374638883,-151.71,0.00010909,2]
[340504526,1729374638893,-151.71,0.00010916,2]
[340504527,1729374638902,-151.71,0.00010923,2]
[340504528,1729374638912,-151.71,0.0001093,2]
[340504529,1729374638921,-151.71,0.00010936,2]
[340504530,1729374638931,-160.68,0.00010959,2]
[340504531,1729374638940,-3102.894,0.00010959,2]
[340504533,1729374638950,-157.84,0.00010959,2]
[340504535,1729374638959,-250.0,0.00010959,2]
[340504536,1729374638968,-227.48689619,0.00010973,2]
[340504537,1729374638978,-151.20454897,0.00010999,2]
[340504538,1729374638988,-517415.6913957,0.00011,2]
[340504539,1729374638998,-410699.20430103,0.00011,2]
[340504540,1729374639007,-120137.07562252,0.00011,2]
[340504541,1729374639018,-26831.899412,0.00011,2]
[340504542,1729374639030,-999.99999999,0.00011,2]
[340504543,1729374639041,-25248.69888996,0.00011,2]
[340504544,1729374639052,-11216.25702667,0.00011,2]
[340504545,1729374639063,-12612.34474342,0.00011,2]
[340504552,1729374640387,-744.17315985,0.00011,2]
[340504553,1729374640503,-1239.04051252,0.00011,2]
[340504554,1729374640514,-397.28500001,0.00011,2]
[340504567,1729374643413,-5188.36,0.00011,2]
[340504569,1729374643696,-3250.26235662,0.00011,2]
[340504570,1729374645446,-17385.68251884,0.00011,2]
[340504571,1729374645628,-2168.88438187,0.00011,2]
[340504573,1729374770932,150.0,0.000125,3]
[340504574,1729374801551,705.5,0.00027,60]
[340504575,1729374802299,1008.84171698,0.00027,60]
[340504577,1729374956335,528.44,8.219e-05,2]
[340504580,1729375064250,23900.0,0.00010061,2]
[340504581,1729375206565,250.0,0.00010038,2]
[340504582,1729375299976,250.0,0.00010048,2]
[340504583,1729375339286,569.6,0.00010067,2]
[340504585,1729375482788,177.06,0.00010061,2]
[340504586,1729375503826,502.01,8.219e-05,2]
[340504587,1729375543097,2168.68,0.00010078,2]
[340504588,1729375607171,23900.0,0.00010067,2]
[340504589,1729375748234,250.0,0.00010067,2]
[340504590,1729375828549,250.0,0.00010054,2]
[340504593,1729375831501,-150.0,0.00010471,2]
[340504594,1729375831512,-502.01,0.0001048,2]
[340504595,1729375831522,-300.0,0.00010699,2]
[340504596,1729375831531,-9450.4393057,0.000107,2]
[340504597,1729375831542,-628.42,0.000107,2]
[340504598,1729375831554,-2045.75766083,0.000107,2]
[340504599,1729375831565,-601.19365601,0.000107,2]
[340504600,1729375831576,-12336.68677746,0.000107,2]
[340504601,1729375831586,-300.0,0.00010799,2]
[340504602,1729375831595,-150.0,0.00010799,2]
[340504603,1729375831605,-272.8281,0.000108,2]
[340504604,1729375831614,-340.6707,0.000108,2]
[340504605,1729375831623,-9251.3322,0.000108,2]
[340504606,1729375831633,-2500.0,0.000108,2]
[340504607,1729375831642,-22722.26231578,0.000108,2]
[340504608,1729375831654,-737.5985368,0.000108,2]
[340504609,1729375831665,-1644.32044716,0.000108,2]
[340504610,1729375831677,-680.52914875,0.000108,2]
[340504611,1729375831686,-430.4,0.00010812,2]
[340504612,1729375831696,-4074.676,0.00010899,2]
[340504613,1729375831705,-168.738,0.00010899,2]
[340504614,1729375831714,-3131.70218202,0.00010899,2]
[340504615,1729375831726,-7927.53676672,0.00010899,2]
[340504616,1729375831735,-374.3784,0.000109,2]
[340504617,1729375831744,-500.0,0.000109,2]
[340504618,1729375831754,-2772.28743215,0.000109,2]
[340504619,1729375831765,-2498.3477175,0.000109,2]
[340504620,1729375831776,-3372.54487743,0.000109,2]
[340504621,1729375831787,-2285.89488508,0.000109,2]
[340504622,1729375831798,-983.93,0.000109,2]
[340504623,1729375831809,-700.0,0.000109,2]
[340504624,1729375831820,-351.89855854,0.000109,2]
[340504625,1729375831831,-664.57727663,0.000109,2]
[340504626,1729375831842,-5221.07153573,0.000109,2]
[340504627,1729375832001,-9951.80583293,0.000109,2]
[340504628,1729375832013,-337.90855138,0.000109,2]
[340504629,1729375832024,-633.39617763,0.000109,2]
[340504630,1729375832035,-400.0,0.000109,2]
[340504631,1729375832046,-2984.3221489,0.000109,2]
[340504632,1729375832057,-4363.30841209,0.000109,2]
[340504633,1729375832068,-12379.10156961,0.000109,2]
[340504634,1729375832079,-10498.9857244,0.000109,2]
[340504635,1729375832089,-163.14608641,0.000109,2]
[340504636,1729375832098,-151.137,0.000109,2]
[340504637,1729375832107,-3338.5505,0.000109,2]
[340504638,1729375832116,-1128.2616,0.000109,2]
[340504639,1729375832126,-26268.555,0.000109,2]
[340504640,1729375832138,-1251.29109552,0.000109,2]
[340504641,1729375832147,-1251.29109553,0.000109,2]
[340504642,1729375832156,-190168.239,0.000109,2]
[340504643,1729375832165,-398.9263,0.000109,2]
[340504644,1729375832174,-1704.2607,0.000109,2]
[340504645,1729375832185,-493.199,0.000109,2]
[340504646,1729375832194,-4986.3405,0.000109,2]
[340504647,1729375832203,-158.33567086,0.000109,2]
[340504648,1729375832213,-1132.4983177,0.000109,2]
[340504649,1729375832222,-10886.1856942,0.000109,2]
[340504650,1729375832231,-186.01079357,0.000109,2]
[340504651,1729375832242,-156.84422594,0.00010954,2]
[340504652,1729375832251,-500.0,0.00010958,2]
[340504653,1729375832260,-500.0,0.00010958,2]
[340504654,1729375832270,-499.14692765,0.00010958,2]
[340504655,1729375832279,-153.01,0.00010959,2]
[340504656,1729375832288,-213.43,0.00010959,2]
[340504657,1729375832297,-672.7132,0.00010959,2]
[340504658,1729375832306,-1500.0,0.00010959,2]
[340504659,1729375832315,-500.0,0.00010959,2]
[340504660,1729375832324,-162.94,0.00010959,2]
[340504661,1729375832334,-250.0,0.00010959,2]
[340504662,1729375832343,-150.0,0.00010959,2]
[340504663,1729375832352,-501.77689152,0.00010973,2]
[340504664,1729375832361,-575.21,0.00010973,2]
[340504665,1729375832370,-150.99,0.00010973,2]
[340504666,1729375832380,-13008.55,0.00010973,2]
[340504667,1729375832389,-748.24,0.00010973,2]
[340504668,1729375832398,-3379.89,0.00010973,2]
[340504669,1729375832407,-499.99,0.00010973,2]
[340504670,1729375832417,-306.44469223,0.00010973,2]
[340504671,1729375832427,-161.66513928,0.00010973,2]
[340504672,1729375832436,-500.0,0.00010973,2]
[340504673,1729375832446,-160.88372437,0.00010973,2]
[340504674,1729375832455,-180.25,0.00010984,2]
[340504675,1729375832464,-1280.75,0.00010984,2]
[340504676,1729375832473,-151.20454897,0.00010999,2]
[340504677,1729375832482,-307.86749527,0.00010999,2]
[340504678,1729375832491,-624.0,0.00011,2]
[340504679,1729375832501,-209167.1852988,0.00011,2]
[340504680,1729375832513,-5395.38119057,0.00011,2]
[340504681,1729375832523,-552.55833055,0.00011,2]
[340504682,1729375832535,-588.74678369,0.00011,2]
[340504683,1729375832546,-1974.18309637,0.00011,2]
[340504684,1729375832557,-2248.6741294,0.00011,2]
[340504685,1729375832569,-750.26546194,0.00011,2]
[340504686,1729375832580,-1266.60175907,0.00011,2]
[340504687,1729375832592,-7068.50393134,0.00011,2]
[340504688,1729375832602,-562.21440665,0.00011,2]
[340504689,1729375832613,-1274.32993384,0.00011,2]
[340504690,1729375832624,-6521.5831681,0.00011,2]
[340504691,1729375832635,-4212.6311127,0.00011,2]
[340504692,1729375832646,-1285.70283055,0.00011,2]
[340504693,1729375832658,-357.46371413,0.00011,2]
[340504694,1729375832669,-793.35,0.00011,2]
[340504696,1729375837595,-1893.1272692,0.00011,2]
[340504697,1729375837632,-659.75132017,0.00011,2]
[340504698,1729375837644,-1921.952907,0.00011,2]
[340504699,1729375837655,-514.88286204,0.00011,2]
[340504700,1729375837666,-1311.26005332,0.00011,2]
[340504701,1729375837677,-8059.376716,0.00011,2]
[340504702,1729375837691,-612.18240239,0.00011,2]
[340504703,1729375837702,-313.27,0.00011,2]
[340504704,1729375837831,-1120.66502401,0.00011,2]
[340504705,1729375837844,-254.99999,0.00011,2]
[340504706,1729375837855,-135956.35176304,0.00011,2]
[340504707,1729375837866,-2040.59919619,0.00011,2]
[340504708,1729375837878,-1632.18970442,0.00011,2]
[340504709,1729375837889,-18958.69146001,0.00011,2]
[340504710,1729375837900,-1765.0,0.00011,2]
[340504711,1729375837915,-3520317.32252034,0.00011,2]
[340504712,1729375837925,-153.98,0.00011054,2]
[340504713,1729375837934,-153.98,0.00011058,2]
[340504714,1729375837943,-153.98,0.00011061,2]
[340504715,1729375837953,-153.98,0.00011064,2]
[340504716,1729375837962,-153.98,0.00011068,2]
[340504717,1729375837972,-153.98,0.00011071,2]
[340504718,1729375837981,-153.98,0.00011075,2]
[340504719,1729375837990,-153.98,0.00011078,2]
[340504720,1729375838000,-153.98,0.00011082,2]
[340504721,1729375838009,-153.98,0.00011085,2]
[340504722,1729375838018,-153.98,0.00011089,2]
[340504723,1729375838028,-153.98,0.00011092,2]
[340504724,1729375838038,-153.98,0.00011096,2]
[340504725,1729375838047,-153.98,0.00011099,2]
[340504726,1729375838056,-1000.0,0.000111,2]
[340504727,1729375838066,-153.98,0.00011102,2]
[340504728,1729375838075,-153.98,0.00011106,2]
[340504729,1729375838085,-153.98,0.00011109,2]
[340504730,1729375838094,-1000.0,0.000113,2]
[340504731,1729375838104,-569.6,0.00011326,2]
[340504732,1729375838114,-423.6155186,0.00011341,2]
[340504733,1729375838123,-300.0,0.00012,2]
[340504734,1729375838134,-150.0,0.00012026,2]
[340504735,1729375838144,-150.0,0.00012038,2]
[340504736,1729375838153,-150.0,0.00012045,2]
[340504737,1729375838163,-150.0,0.00012046,2]
[340504738,1729375838172,-150.0,0.00012046,2]
[340504739,1729375838183,-150.0,0.00012052,2]
[340504740,1729375838192,-150.0,0.00012055,2]
[340504741,1729375838202,-150.0,0.00012055,2]
[340504742,1729375838211,-150.0,0.00012065,2]
[340504743,1729375838221,-150.0,0.00012066,2]
[340504744,1729375838230,-150.0,0.00012069,2]
[340504745,1729375838239,-150.0,0.00012073,2]
[340504746,1729375838249,-150.0,0.00012077,2]
[340504748,1729375838258,-150.0,0.00012081,2]
[340504750,1729375838267,-150.0,0.00012082,2]
[340504752,1729375838276,-150.0,0.00012087,2]
[340504754,1729375838285,-150.0,0.00012102,2]
[340504755,1729375838295,-150.0,0.00012114,2]
[340504756,1729375838305,-150.0,0.0001212,2]
[340504757,1729375838315,-150.0,0.00012121,2]
[340504758,1729375838324,-150.0,0.00012127,2]
[340504759,1729375838333,-150.0,0.00012128,2]
[340504760,1729375838343,-150.0,0.00012129,2]
[340504761,1729375838352,-430.4,0.00012164,2]
[340504762,1729375838362,-150.0,0.00012166,2]
[340504763,1729375838371,-150.0,0.00012169,2]
[340504764,1729375838380,-150.0,0.0001217,2]
[340504765,1729375838389,-150.0,0.00012187,2]
[340504766,1729375838399,-150.0,0.00012189,2]
[340504767,1729375838408,-150.0,0.00012191,2]
[340504768,1729375838419,-150.0,0.00012195,2]
[340504769,1729375838428,-150.0,0.00012197,2]
[340504770,1729375838438,-500.0,0.000122,2]
[340504771,1729375838447,-150.0,0.00012206,2]
[340504772,1729375838457,-150.0,0.00012214,2]
[340504773,1729375838466,-150.0,0.00012224,2]
[340504774,1729375838475,-150.0,0.0001223,2]
[340504775,1729375838484,-150.0,0.00012245,2]
[340504776,1729375838494,-150.0,0.00012262,2]
[340504777,1729375838503,-150.0,0.00012269,2]
[340504778,1729375838513,-150.0,0.00012276,2]
[340504779,1729375838522,-259.39507872,0.00012301,2]
[340504780,1729375838531,-7435.32,0.00012329,2]
[340504781,1729375838540,-11059.23894874,0.00012367,2]
[340504782,1729375838550,-569.6,0.00012584,2]
[340504783,1729375838560,-502.01,0.00012741,2]
[340504784,1729375838569,-360.0,0.000132,2]
[340504785,1729375838578,-1000.0,0.000132,2]
[340504786,1729375838588,-430.4,0.00013515,2]
[340504787,1729375838598,-167.09,0.00013699,2]
[340504788,1729375838607,-200.0,0.00013699,2]
[340504789,1729375838616,-1000.0,0.000138,2]
[340504790,1729375838625,-250298.60174,0.000138,3]
[340504791,1729375838634,-569.6,0.00013843,2]
[340504792,1729375838643,-219428.503828,0.000139,3]
[340504793,1729375838653,-11059.23894874,0.00013933,2]
[340504794,1729375838662,-1335.59,0.00014,2]
[340504795,1729375838671,-350.0,0.00014,2]
[340504796,1729375838680,-163.1460864,0.000144,2]
[340504797,1729375838690,-1000.0,0.000145,2]
[340504798,1729375838699,-430.4,0.00014867,2]
[340504799,1729375838708,-502.01,0.00015002,2]
[340504800,1729375838718,-177.06,0.00015092,2]
[340504801,1729375838727,-936.0,0.00015094,2]
[340504802,1729375838736,-555.0,0.00015094,2]
[340504803,1729375838746,-569.6,0.00015101,2]
[340504804,1729375838755,-1000.0,0.000152,2]
[340504805,1729375838764,-11059.23894874,0.000155,2]
[340504806,1729375838774,-274126.80548427,0.000159,2]
[340504807,1729375838783,-1000.0,0.000159,2]
[340504808,1729375838792,-400.0,0.00016,2]
[340504809,1729375838805,-430.4,0.00016218,2]
[340504810,1729375838814,-906.0,0.000163,3]
[340504811,1729375838823,-152.47,0.00016438,2]
[340504812,1729375838833,-2532.0,0.000165,3]
[340504813,1729375838842,-1000.0,0.000166,2]
[340504814,1729375838851,-11059.23894874,0.00017067,2]
[340504815,1729375838860,-502.01,0.00017262,2]
[340504816,1729375838869,-1000.0,0.000173,2]
[340504817,1729375838878,-163.1460864,0.000179,2]
[340504818,1729375838887,-1132.49831769,0.000179,2]
[340504819,1729375838896,-10886.1856942,0.000179,2]
[340504820,1729375838906,-450.0,0.00018,2]
[340504821,1729375838915,-934.0,0.00018094,2]
[340504822,1729375838924,-555.0,0.00018094,2]
[340504823,1729375838934,-11059.23894874,0.00018633,2]
[340504824,1729375838943,-1000.0,0.000187,2]
[340504825,1729375838952,-1980.0,0.000194,2]
[340504826,1729375838961,-502.01,0.00019523,2]
[340504827,1729375838970,-1190.93798101,0.0002,4]
[340504828,1729375838979,-500.0,0.0002,2]
[340504829,1729375838988,-150.0,0.0002,2]
[340504830,1729375838999,-11059.23894874,0.000202,2]
[340504831,1729375839008,-151.0,0.00020233,2]
[340504832,1729375839017,-152.47,0.00020274,2]
[340504833,1729375839026,-173.36,0.00020548,2]
[340504834,1729375839035,-500.0,0.000208,2]
[340504835,1729375839044,-500.0,0.000208,2]
[340504836,1729375839053,-500.0,0.000208,2]
[340504837,1729375839062,-500.0,0.000208,2]
[340504838,1729375839071,-500.0,0.000208,2]
[340504839,1729375839080,-500.0,0.000208,2]
[340504840,1729375839090,-500.0,0.000208,2]
[340504841,1729375839100,-500.0,0.000208,2]
[340504842,1729375839109,-500.0,0.000208,2]
[340504843,1729375839118,-500.0,0.000208,2]
[340504844,1729375839128,-500.0,0.000208,2]
[340504845,1729375839139,-500.0,0.000208,2]
[340504846,1729375839149,-500.0,0.000208,2]
[340504847,1729375839158,-500.0,0.000208,2]
[340504848,1729375839167,-500.0,0.000208,2]
[340504849,1729375839178,-500.0,0.000208,2]
[340504850,1729375839188,-500.0,0.000208,2]
[340504851,1729375839198,-500.0,0.000208,2]
[340504852,1729375839207,-500.0,0.000208,2]
[340504853,1729375839216,-500.0,0.000208,2]
[340504854,1729375839228,-500.0,0.000208,2]
[340504855,1729375839237,-500.0,0.000208,2]
[340504856,1729375839247,-500.0,0.000208,2]
[340504857,1729375839256,-500.0,0.000208,2]
[340504858,1729375839265,-500.0,0.000208,2]
[340504859,1729375839274,-500.0,0.000208,2]
[340504860,1729375839283,-500.0,0.000208,2]
[340504861,1729375839293,-500.0,0.000208,2]